[Event "Early-Titled-Tuesday-Blitz-May-07-2024"]
[Site "Chess.com"]
[Date "2024.05.07"]
[Round "1"]
[White "juanchesst"]
[Black "Zapateado"]
[Result "0-1"]
[WhiteElo "2657"]
[BlackElo "2396"]
[TimeControl "180+1"]
[EndTime "8:07:05 PDT"]
[Termination "Zapateado won by resignation"]

1. d4 {[%clk 0:03:00.9]} 1... d5 {[%clk 0:02:55]} 2. c4 {[%clk 0:02:59.9]} 2...
e5 {[%clk 0:02:55.6]} 3. dxe5 {[%clk 0:02:59.7]} 3... d4 {[%clk 0:02:56.1]} 4.
a3 {[%clk 0:03:00.2]} 4... Nc6 {[%clk 0:02:56.6]} 5. Nf3 {[%clk 0:03:00.7]} 5...
Nge7 {[%clk 0:02:56.8]} 6. e3 {[%clk 0:03:00.9]} 6... Bg4 {[%clk 0:02:55.9]} 7.
Be2 {[%clk 0:02:51.7]} 7... dxe3 {[%clk 0:02:55.6]} 8. Bxe3 {[%clk 0:02:48.2]}
8... Qxd1+ {[%clk 0:02:53.7]} 9. Bxd1 {[%clk 0:02:49.1]} 9... Bxf3 {[%clk
0:02:37.9]} 10. Bxf3 {[%clk 0:02:48.7]} 10... Nxe5 {[%clk 0:02:38.6]} 11. Be2
{[%clk 0:02:41.2]} 11... O-O-O {[%clk 0:02:33.5]} 12. Nc3 {[%clk 0:02:34]} 12...
Nf5 {[%clk 0:02:32.3]} 13. Bf4 {[%clk 0:02:11.7]} 13... Ng6 {[%clk 0:02:18.1]}
14. Bg5 {[%clk 0:02:08.3]} 14... f6 {[%clk 0:02:02.5]} 15. Bg4 {[%clk
0:02:07.4]} 15... Ne7 {[%clk 0:01:37.8]} 16. Bd2 {[%clk 0:02:04.3]} 16... Kb8
{[%clk 0:01:29.1]} 17. O-O-O {[%clk 0:02:01.4]} 17... h5 {[%clk 0:01:21.7]} 18.
Bh3 {[%clk 0:01:59]} 18... Nd4 {[%clk 0:01:03.8]} 19. Be3 {[%clk 0:01:55.7]}
19... Nec6 {[%clk 0:00:56.5]} 20. Nb5 {[%clk 0:01:42.6]} 20... Bc5 {[%clk
0:00:29.5]} 21. b4 {[%clk 0:01:42.4]} 21... Ne2+ {[%clk 0:00:15.7]} 22. Kc2
{[%clk 0:01:33.7]} 22... Bxe3 {[%clk 0:00:16.1]} 23. fxe3 {[%clk 0:01:32]} 23...
a6 {[%clk 0:00:16.6]} 24. Nc3 {[%clk 0:01:09.8]} 24... Nxc3 {[%clk 0:00:12.7]}
25. Kxc3 {[%clk 0:01:10.7]} 25... Ne5 {[%clk 0:00:12.1]} 26. Bf5 {[%clk
0:01:04.4]} 26... c6 {[%clk 0:00:07.7]} 27. h3 {[%clk 0:01:02.7]} 27... Kc7
{[%clk 0:00:06.1]} 28. c5 {[%clk 0:01:02.4]} 28... b6 {[%clk 0:00:04.4]} 29.
cxb6+ {[%clk 0:01:02]} 29... Kxb6 {[%clk 0:00:05.3]} 30. Rd4 {[%clk 0:00:58.3]}
30... Rxd4 {[%clk 0:00:02.8]} 31. exd4 {[%clk 0:00:59.2]} 31... Nf7 {[%clk
0:00:02]} 32. Re1 {[%clk 0:00:56.4]} 32... Nd6 {[%clk 0:00:02.6]} 33. Bg6 {[%clk
0:00:56.8]} 33... Nb5+ {[%clk 0:00:02.4]} 34. Kd3 {[%clk 0:00:53.7]} 34... Rd8
{[%clk 0:00:02.9]} 35. Re4 {[%clk 0:00:51.3]} 35... Nxa3 {[%clk 0:00:03.1]} 36.
Bxh5 {[%clk 0:00:50.9]} 36... Nb5 {[%clk 0:00:02.9]} 37. Bf7 {[%clk 0:00:47.3]}
37... f5 {[%clk 0:00:01.2]} 38. Rh4 {[%clk 0:00:46.6]} 38... g5 {[%clk
0:00:01.5]} 39. Rh5 {[%clk 0:00:45.5]} 39... Rxd4+ {[%clk 0:00:02.2]} 40. Kc2
{[%clk 0:00:44.6]} 40... Rxb4 {[%clk 0:00:03.1]} 41. Rxg5 {[%clk 0:00:44.7]}
41... a5 {[%clk 0:00:03.7]} 42. Rxf5 {[%clk 0:00:42.3]} 42... Nd4+ {[%clk
0:00:03.7]} 43. Kc3 {[%clk 0:00:42.8]} 43... Nxf5 {[%clk 0:00:04.6]} 44. Be6
{[%clk 0:00:43]} 44... Nd4 {[%clk 0:00:04.7]} 45. Bg4 {[%clk 0:00:43.1]} 45...
Nb5+ {[%clk 0:00:05.2]} 46. Kc2 {[%clk 0:00:43.1]} 46... a4 {[%clk 0:00:05.8]}
47. Be2 {[%clk 0:00:43.9]} 47... a3 {[%clk 0:00:05.9]} 48. Bc4 {[%clk
0:00:43.2]} 48... Rxc4+ {[%clk 0:00:05.5]} 0-1

[Event "Early-Titled-Tuesday-Blitz-May-07-2024"]
[Site "Chess.com"]
[Date "2024.05.07"]
[Round "1"]
[White "Revan_2002"]
[Black "Daaksboy"]
[Result "0-1"]
[WhiteElo "2729"]
[BlackElo "2462"]
[TimeControl "180+1"]
[EndTime "8:07:07 PDT"]
[Termination "Daaksboy won by resignation"]

1. Nf3 {[%clk 0:03:00.2]} 1... Nf6 {[%clk 0:02:59.5]} 2. d4 {[%clk 0:02:57.9]}
2... g6 {[%clk 0:02:58.3]} 3. c4 {[%clk 0:02:52.1]} 3... Bg7 {[%clk 0:02:57.3]}
4. Nc3 {[%clk 0:02:51.7]} 4... d5 {[%clk 0:02:56]} 5. cxd5 {[%clk 0:02:43.1]}
5... Nxd5 {[%clk 0:02:54.5]} 6. Bd2 {[%clk 0:02:27.1]} 6... O-O {[%clk
0:02:49.2]} 7. e4 {[%clk 0:02:26.7]} 7... Nxc3 {[%clk 0:02:47.8]} 8. Bxc3 {[%clk
0:02:26.6]} 8... c5 {[%clk 0:02:42.5]} 9. d5 {[%clk 0:02:26.8]} 9... e6 {[%clk
0:02:42.5]} 10. Be2 {[%clk 0:02:21]} 10... exd5 {[%clk 0:02:38]} 11. exd5 {[%clk
0:02:21.9]} 11... Nd7 {[%clk 0:02:21]} 12. O-O {[%clk 0:02:20.9]} 12... Nb6
{[%clk 0:02:20.6]} 13. Rc1 {[%clk 0:02:10]} 13... Nxd5 {[%clk 0:02:04.8]} 14.
Bxg7 {[%clk 0:02:08.1]} 14... Kxg7 {[%clk 0:02:04.8]} 15. Rxc5 {[%clk
0:01:57.8]} 15... Nf4 {[%clk 0:02:03.3]} 16. Qc2 {[%clk 0:01:49.8]} 16... Bf5
{[%clk 0:01:55.8]} 17. Qc3+ {[%clk 0:01:18.5]} 17... Qf6 {[%clk 0:01:49.1]} 18.
Nd4 {[%clk 0:01:16.4]} 18... Kg8 {[%clk 0:01:37.8]} 19. Bf3 {[%clk 0:01:12.6]}
19... Be4 {[%clk 0:01:21.7]} 20. Bxe4 {[%clk 0:00:53.5]} 20... Qxd4 {[%clk
0:01:19.9]} 21. Qxd4 {[%clk 0:00:54.4]} 21... Ne2+ {[%clk 0:01:18.5]} 22. Kh1
{[%clk 0:00:54.2]} 22... Nxd4 {[%clk 0:01:19.4]} 23. Bxb7 {[%clk 0:00:54.5]}
23... Rab8 {[%clk 0:01:18.3]} 24. Rc7 {[%clk 0:00:53.2]} 24... Ne6 {[%clk
0:01:05.2]} 25. Re7 {[%clk 0:00:48.4]} 25... Rfd8 {[%clk 0:01:04.8]} 26. Bf3
{[%clk 0:00:39.2]} 26... Rxb2 {[%clk 0:01:03]} 27. Rxa7 {[%clk 0:00:37.9]} 27...
Rdd2 {[%clk 0:00:58.8]} 28. a4 {[%clk 0:00:36.2]} 28... Rxf2 {[%clk 0:00:53.6]}
29. Kg1 {[%clk 0:00:36.3]} 29... Rfd2 {[%clk 0:00:45.6]} 30. a5 {[%clk
0:00:33.2]} 30... Ra2 {[%clk 0:00:40.8]} 31. a6 {[%clk 0:00:14.4]} 31... Nc5
{[%clk 0:00:38.8]} 32. Ra8+ {[%clk 0:00:12.7]} 32... Kg7 {[%clk 0:00:38.4]} 33.
Bb7 {[%clk 0:00:07]} 33... Nxb7 {[%clk 0:00:32.2]} 34. axb7 {[%clk 0:00:06.6]}
34... Rxg2+ {[%clk 0:00:32.8]} 0-1

[Event "Early-Titled-Tuesday-Blitz-May-07-2024"]
[Site "Chess.com"]
[Date "2024.05.07"]
[Round "1"]
[White "AndrewB92"]
[Black "only_strong_moves"]
[Result "0-1"]
[WhiteElo "2406"]
[BlackElo "2709"]
[TimeControl "180+1"]
[EndTime "8:07:07 PDT"]
[Termination "only_strong_moves won on time"]

1. d4 {[%clk 0:03:00]} 1... Nf6 {[%clk 0:03:00.2]} 2. c4 {[%clk 0:02:59.7]} 2...
e6 {[%clk 0:03:00.6]} 3. Nc3 {[%clk 0:02:59.3]} 3... d5 {[%clk 0:03:01.3]} 4.
Nf3 {[%clk 0:02:58.8]} 4... c5 {[%clk 0:03:00.1]} 5. cxd5 {[%clk 0:02:58.2]}
5... cxd4 {[%clk 0:03:00.4]} 6. Nxd4 {[%clk 0:02:55.6]} 6... Nxd5 {[%clk
0:03:00.1]} 7. Nf3 {[%clk 0:02:36.7]} 7... Bb4 {[%clk 0:02:56.8]} 8. Bd2 {[%clk
0:02:35.7]} 8... Nxc3 {[%clk 0:02:55.3]} 9. bxc3 {[%clk 0:02:34.6]} 9... Be7
{[%clk 0:02:55.4]} 10. e4 {[%clk 0:02:33.1]} 10... O-O {[%clk 0:02:55.8]} 11.
Bc4 {[%clk 0:02:29.8]} 11... Nc6 {[%clk 0:02:55.9]} 12. O-O {[%clk 0:02:29.1]}
12... Qc7 {[%clk 0:02:55.8]} 13. Qe2 {[%clk 0:02:16.2]} 13... Rd8 {[%clk
0:02:56.1]} 14. Rfd1 {[%clk 0:02:14.1]} 14... Na5 {[%clk 0:02:54.7]} 15. Bb3
{[%clk 0:02:12.9]} 15... b6 {[%clk 0:02:54.9]} 16. c4 {[%clk 0:01:59.9]} 16...
Nb7 {[%clk 0:02:50.7]} 17. Bc3 {[%clk 0:01:57.7]} 17... Nc5 {[%clk 0:02:50.2]}
18. Rxd8+ {[%clk 0:01:54.3]} 18... Qxd8 {[%clk 0:02:51.1]} 19. Rd1 {[%clk
0:01:53]} 19... Qe8 {[%clk 0:02:46.4]} 20. Nd4 {[%clk 0:01:45.8]} 20... a6
{[%clk 0:02:37.7]} 21. Qg4 {[%clk 0:01:27.9]} 21... g6 {[%clk 0:02:12.5]} 22.
Bc2 {[%clk 0:01:10.5]} 22... Bb7 {[%clk 0:02:04.8]} 23. e5 {[%clk 0:00:59.7]}
23... Rd8 {[%clk 0:02:04.7]} 24. h4 {[%clk 0:00:56.9]} 24... Na4 {[%clk
0:02:02.3]} 25. Ba1 {[%clk 0:00:54.3]} 25... h5 {[%clk 0:01:48.8]} 26. Qg3
{[%clk 0:00:51.4]} 26... Nc5 {[%clk 0:01:48.7]} 27. f3 {[%clk 0:00:44.2]} 27...
Rd7 {[%clk 0:01:45.6]} 28. Qf4 {[%clk 0:00:40.9]} 28... Qd8 {[%clk 0:01:41.4]}
29. g3 {[%clk 0:00:30]} 29... b5 {[%clk 0:01:36.4]} 30. cxb5 {[%clk 0:00:28.6]}
30... axb5 {[%clk 0:01:37.3]} 31. Kh2 {[%clk 0:00:27]} 31... Bf8 {[%clk
0:01:27.4]} 32. Kh3 {[%clk 0:00:24.4]} 32... Bg7 {[%clk 0:01:26.3]} 33. g4
{[%clk 0:00:23.1]} 33... hxg4+ {[%clk 0:01:18.8]} 34. fxg4 {[%clk 0:00:24]}
34... Rd5 {[%clk 0:01:16.3]} 35. h5 {[%clk 0:00:15.2]} 35... Bxe5 {[%clk
0:01:13.8]} 36. Qf2 {[%clk 0:00:12.1]} 36... Qf6 {[%clk 0:01:03.3]} 37. Qe3
{[%clk 0:00:05.3]} 37... Bf4 {[%clk 0:00:59.4]} 38. Qe2 {[%clk 0:00:05.3]} 38...
Qg5 {[%clk 0:00:53.3]} 39. Nf3 {[%clk 0:00:04.6]} 39... Qd8 {[%clk 0:00:51.8]}
40. Rf1 {[%clk 0:00:02.9]} 40... gxh5 {[%clk 0:00:48.8]} 41. Kg2 {[%clk
0:00:02.2]} 41... hxg4 {[%clk 0:00:48.2]} 42. Nh2 {[%clk 0:00:01.8]} 42... Rd2+
{[%clk 0:00:48.6]} 0-1

[Event "Early-Titled-Tuesday-Blitz-May-07-2024"]
[Site "Chess.com"]
[Date "2024.05.07"]
[Round "1"]
[White "VD_coach"]
[Black "Chernov_Alexander_A"]
[Result "1-0"]
[WhiteElo "2593"]
[BlackElo "2256"]
[TimeControl "180+1"]
[EndTime "8:07:07 PDT"]
[Termination "VD_coach won on time"]

1. d4 {[%clk 0:03:00.9]} 1... Nf6 {[%clk 0:02:58.7]} 2. Nf3 {[%clk 0:02:59.9]}
2... e6 {[%clk 0:02:57.2]} 3. c4 {[%clk 0:02:59.1]} 3... b6 {[%clk 0:02:56.9]}
4. g3 {[%clk 0:02:58.1]} 4... Bb7 {[%clk 0:02:56.9]} 5. Bg2 {[%clk 0:02:57.9]}
5... Be7 {[%clk 0:02:55.7]} 6. O-O {[%clk 0:02:57.9]} 6... O-O {[%clk 0:02:54]}
7. Nc3 {[%clk 0:02:56.7]} 7... Ne4 {[%clk 0:02:51.8]} 8. Bd2 {[%clk 0:02:55.3]}
8... d6 {[%clk 0:02:43.1]} 9. Rc1 {[%clk 0:02:46.3]} 9... Nd7 {[%clk 0:02:40.8]}
10. Re1 {[%clk 0:02:36.9]} 10... c5 {[%clk 0:02:34.2]} 11. d5 {[%clk 0:02:21.1]}
11... exd5 {[%clk 0:02:30]} 12. cxd5 {[%clk 0:02:17]} 12... Ndf6 {[%clk
0:02:00.9]} 13. Nxe4 {[%clk 0:01:56.7]} 13... Nxe4 {[%clk 0:01:59.4]} 14. Bf4
{[%clk 0:01:47.7]} 14... Re8 {[%clk 0:01:30.8]} 15. Qd3 {[%clk 0:01:37.2]} 15...
Bf6 {[%clk 0:01:19.3]} 16. b3 {[%clk 0:01:36.1]} 16... a5 {[%clk 0:01:13.6]} 17.
Nd2 {[%clk 0:01:13.3]} 17... Nxd2 {[%clk 0:01:10.1]} 18. Qxd2 {[%clk 0:01:13]}
18... b5 {[%clk 0:01:04.1]} 19. h4 {[%clk 0:01:09.3]} 19... a4 {[%clk
0:01:02.9]} 20. e4 {[%clk 0:01:03.1]} 20... axb3 {[%clk 0:01:01.8]} 21. axb3
{[%clk 0:01:04]} 21... Bd4 {[%clk 0:00:48.8]} 22. b4 {[%clk 0:00:59.2]} 22... f6
{[%clk 0:00:33.2]} 23. Kh2 {[%clk 0:00:50.1]} 23... Qb6 {[%clk 0:00:28.2]} 24.
bxc5 {[%clk 0:00:48.8]} 24... dxc5 {[%clk 0:00:28.1]} 25. Red1 {[%clk
0:00:46.5]} 25... b4 {[%clk 0:00:26.6]} 26. Be3 {[%clk 0:00:39]} 26... Bxe3
{[%clk 0:00:24.3]} 27. Qxe3 {[%clk 0:00:39.9]} 27... Rac8 {[%clk 0:00:22.2]} 28.
h5 {[%clk 0:00:37]} 28... h6 {[%clk 0:00:20.6]} 29. Kg1 {[%clk 0:00:36.3]} 29...
b3 {[%clk 0:00:19.7]} 30. Rb1 {[%clk 0:00:35.6]} 30... Qb4 {[%clk 0:00:16.9]}
31. Rxb3 {[%clk 0:00:35]} 31... Qa4 {[%clk 0:00:05.2]} 32. Rdb1 {[%clk
0:00:31.1]} 32... Ba6 {[%clk 0:00:05]} 33. Rb6 {[%clk 0:00:29.5]} 33... c4
{[%clk 0:00:04]} 34. Qc3 {[%clk 0:00:24.9]} 1-0

[Event "Early-Titled-Tuesday-Blitz-May-07-2024"]
[Site "Chess.com"]
[Date "2024.05.07"]
[Round "1"]
[White "th3d4rkness"]
[Black "AlexanderKing"]
[Result "0-1"]
[WhiteElo "2195"]
[BlackElo "2580"]
[TimeControl "180+1"]
[EndTime "8:07:07 PDT"]
[Termination "AlexanderKing won by resignation"]

1. e4 {[%clk 0:03:00.9]} 1... c5 {[%clk 0:02:56.9]} 2. Nc3 {[%clk 0:02:59.6]}
2... e6 {[%clk 0:02:56.1]} 3. d4 {[%clk 0:02:53.5]} 3... cxd4 {[%clk 0:02:55.3]}
4. Qxd4 {[%clk 0:02:54]} 4... Nc6 {[%clk 0:02:55.2]} 5. Qe3 {[%clk 0:02:49.8]}
5... Nf6 {[%clk 0:02:54.9]} 6. b3 {[%clk 0:02:38]} 6... Bb4 {[%clk 0:02:52.6]}
7. Bb2 {[%clk 0:02:37.7]} 7... d5 {[%clk 0:02:49.2]} 8. O-O-O {[%clk 0:02:24.1]}
8... d4 {[%clk 0:02:37.7]} 9. Qg3 {[%clk 0:02:19.4]} 9... O-O {[%clk 0:02:24.8]}
10. e5 {[%clk 0:02:08.2]} 10... Bxc3 {[%clk 0:01:29.2]} 11. Bxc3 {[%clk
0:02:01.4]} 11... Ne4 {[%clk 0:01:22.9]} 12. Qh3 {[%clk 0:01:25]} 12... Nxc3
{[%clk 0:01:06.7]} 13. Bd3 {[%clk 0:01:16.4]} 13... h6 {[%clk 0:00:51.8]} 14.
Re1 {[%clk 0:01:13.6]} 14... Nxa2+ {[%clk 0:00:36.6]} 15. Kb2 {[%clk 0:01:09.4]}
15... Nab4 {[%clk 0:00:20.4]} 16. Nf3 {[%clk 0:01:05.9]} 16... a5 {[%clk
0:00:19.2]} 17. g4 {[%clk 0:01:04.6]} 17... a4 {[%clk 0:00:17]} 18. g5 {[%clk
0:01:02.9]} 18... a3+ {[%clk 0:00:16.5]} 19. Ka1 {[%clk 0:00:56.9]} 19... Nxd3
{[%clk 0:00:16.7]} 20. cxd3 {[%clk 0:00:56]} 20... hxg5 {[%clk 0:00:12.2]} 21.
Rhg1 {[%clk 0:00:52.7]} 21... f6 {[%clk 0:00:12.3]} 22. Qh5 {[%clk 0:00:39.4]}
22... Qe8 {[%clk 0:00:11.5]} 23. Qg4 {[%clk 0:00:27.9]} 23... Qg6 {[%clk
0:00:10.4]} 24. h4 {[%clk 0:00:21.5]} 24... Qf5 {[%clk 0:00:10.6]} 25. Qh5
{[%clk 0:00:19.1]} 25... g4 {[%clk 0:00:10.8]} 26. Ng5 {[%clk 0:00:16.7]} 26...
fxg5 {[%clk 0:00:06.2]} 27. hxg5 {[%clk 0:00:16.3]} 27... Qxf2 {[%clk
0:00:04.4]} 28. Rb1 {[%clk 0:00:09.9]} 28... Nb4 {[%clk 0:00:04.7]} 0-1

[Event "Early-Titled-Tuesday-Blitz-May-07-2024"]
[Site "Chess.com"]
[Date "2024.05.07"]
[Round "1"]
[White "edgarhay012"]
[Black "Shivananda1964"]
[Result "1-0"]
[WhiteElo "2662"]
[BlackElo "2366"]
[TimeControl "180+1"]
[EndTime "8:07:09 PDT"]
[Termination "edgarhay012 won on time"]

1. e4 {[%clk 0:03:00]} 1... Nc6 {[%clk 0:02:58.9]} 2. Nf3 {[%clk 0:02:58.2]}
2... e5 {[%clk 0:02:58.6]} 3. Bb5 {[%clk 0:02:57]} 3... a6 {[%clk 0:02:58.8]} 4.
Ba4 {[%clk 0:02:57.3]} 4... Nf6 {[%clk 0:02:58.7]} 5. O-O {[%clk 0:02:57.4]}
5... Be7 {[%clk 0:02:59]} 6. Bxc6 {[%clk 0:02:53.9]} 6... dxc6 {[%clk
0:02:45.2]} 7. d3 {[%clk 0:02:53.7]} 7... Nd7 {[%clk 0:02:42.4]} 8. Nbd2 {[%clk
0:02:53]} 8... O-O {[%clk 0:02:42.3]} 9. Nc4 {[%clk 0:02:53.2]} 9... f6 {[%clk
0:02:40.5]} 10. Nh4 {[%clk 0:02:53.2]} 10... Nc5 {[%clk 0:02:33.8]} 11. Nf5
{[%clk 0:02:51.3]} 11... g6 {[%clk 0:02:07.2]} 12. Nxe7+ {[%clk 0:02:40.7]}
12... Qxe7 {[%clk 0:02:07.2]} 13. f4 {[%clk 0:02:38.9]} 13... Be6 {[%clk
0:02:03.8]} 14. b3 {[%clk 0:02:34.9]} 14... Bxc4 {[%clk 0:01:36.8]} 15. bxc4
{[%clk 0:02:35.8]} 15... Ne6 {[%clk 0:01:29.7]} 16. fxe5 {[%clk 0:02:34.3]}
16... fxe5 {[%clk 0:01:28.1]} 17. Be3 {[%clk 0:02:34]} 17... c5 {[%clk 0:01:27]}
18. Qd2 {[%clk 0:02:29.9]} 18... b6 {[%clk 0:01:17.2]} 19. Bh6 {[%clk
0:02:21.4]} 19... Rxf1+ {[%clk 0:01:16.9]} 20. Rxf1 {[%clk 0:02:22.3]} 20... Rd8
{[%clk 0:01:08]} 21. Qf2 {[%clk 0:02:18.4]} 21... Re8 {[%clk 0:00:55.2]} 22. a4
{[%clk 0:02:12.7]} 22... a5 {[%clk 0:00:54.7]} 23. g3 {[%clk 0:02:04.7]} 23...
Nd4 {[%clk 0:00:42.1]} 24. c3 {[%clk 0:01:59.5]} 24... Ne6 {[%clk 0:00:39.7]}
25. Qf3 {[%clk 0:01:59]} 25... Ng7 {[%clk 0:00:32.3]} 26. Kg2 {[%clk 0:01:41.8]}
26... Rf8 {[%clk 0:00:30.2]} 27. Qg4 {[%clk 0:01:16.3]} 27... Rxf1 {[%clk
0:00:29.6]} 28. Kxf1 {[%clk 0:01:17.2]} 28... Qf7+ {[%clk 0:00:26]} 29. Ke2
{[%clk 0:01:17.3]} 29... Ne6 {[%clk 0:00:17.9]} 30. Qh4 {[%clk 0:01:17.4]} 30...
Nf8 {[%clk 0:00:07.3]} 31. Qd8 {[%clk 0:01:16.1]} 31... g5 {[%clk 0:00:06.3]}
32. Qxg5+ {[%clk 0:01:05.9]} 32... Qg6 {[%clk 0:00:06.7]} 33. Qxg6+ {[%clk
0:00:59]} 33... Nxg6 {[%clk 0:00:06.8]} 34. Bg5 {[%clk 0:00:59.6]} 34... Nf8
{[%clk 0:00:04.1]} 35. Bf6 {[%clk 0:01:00.1]} 35... Nd7 {[%clk 0:00:04.3]} 36.
Bd8 {[%clk 0:01:00.1]} 36... c6 {[%clk 0:00:04.9]} 37. Kf3 {[%clk 0:00:59.7]}
37... Kf7 {[%clk 0:00:05.2]} 38. Kg4 {[%clk 0:00:59.3]} 38... Ke8 {[%clk
0:00:04]} 39. Bg5 {[%clk 0:00:57.8]} 39... Kf7 {[%clk 0:00:04.3]} 40. Kf5 {[%clk
0:00:57.7]} 40... Kg7 {[%clk 0:00:04.1]} 41. h4 {[%clk 0:00:56.6]} 41... b5
{[%clk 0:00:04.1]} 42. axb5 {[%clk 0:00:55.5]} 42... cxb5 {[%clk 0:00:04.4]} 43.
cxb5 {[%clk 0:00:56.1]} 43... a4 {[%clk 0:00:04.8]} 44. Bc1 {[%clk 0:00:56.7]}
44... c4 {[%clk 0:00:02.8]} 45. dxc4 {[%clk 0:00:55.2]} 45... Kf7 {[%clk
0:00:03.6]} 46. Ba3 {[%clk 0:00:55]} 46... Nb6 {[%clk 0:00:03.6]} 47. c5 {[%clk
0:00:54.9]} 47... Nc4 {[%clk 0:00:04]} 48. Bb4 {[%clk 0:00:54.3]} 48... a3
{[%clk 0:00:04]} 49. Bxa3 {[%clk 0:00:54.9]} 49... Nxa3 {[%clk 0:00:04.7]} 50.
b6 {[%clk 0:00:55.6]} 1-0

[Event "Early-Titled-Tuesday-Blitz-May-07-2024"]
[Site "Chess.com"]
[Date "2024.05.07"]
[Round "1"]
[White "AnnaChessLook"]
[Black "Shuvalov"]
[Result "1-0"]
[WhiteElo "2303"]
[BlackElo "2598"]
[TimeControl "180+1"]
[EndTime "8:07:09 PDT"]
[Termination "AnnaChessLook won by resignation"]

1. d4 {[%clk 0:02:59]} 1... Nf6 {[%clk 0:02:59.3]} 2. c4 {[%clk 0:02:57.4]} 2...
g6 {[%clk 0:02:59]} 3. Nc3 {[%clk 0:02:56.4]} 3... d5 {[%clk 0:02:59.1]} 4. Nf3
{[%clk 0:02:54.2]} 4... Bg7 {[%clk 0:02:58.1]} 5. Bg5 {[%clk 0:02:54.3]} 5...
Ne4 {[%clk 0:02:58]} 6. cxd5 {[%clk 0:02:54.5]} 6... Nxg5 {[%clk 0:02:57.4]} 7.
Nxg5 {[%clk 0:02:54.7]} 7... e6 {[%clk 0:02:57.6]} 8. Qd2 {[%clk 0:02:53.9]}
8... h6 {[%clk 0:02:55.6]} 9. Nf3 {[%clk 0:02:47.6]} 9... exd5 {[%clk
0:02:52.6]} 10. Qe3+ {[%clk 0:02:41.8]} 10... Be6 {[%clk 0:02:49.5]} 11. g3
{[%clk 0:02:39.9]} 11... O-O {[%clk 0:02:47.1]} 12. Bg2 {[%clk 0:02:39.8]} 12...
c6 {[%clk 0:02:46.2]} 13. O-O {[%clk 0:02:40]} 13... Nd7 {[%clk 0:02:46]} 14. b4
{[%clk 0:02:39.5]} 14... Re8 {[%clk 0:02:42.4]} 15. Qd2 {[%clk 0:02:35.4]} 15...
Nb6 {[%clk 0:02:35.5]} 16. a4 {[%clk 0:02:26.5]} 16... Nc4 {[%clk 0:02:34.9]}
17. Qa2 {[%clk 0:02:26]} 17... Qb6 {[%clk 0:02:22.2]} 18. Rab1 {[%clk
0:01:58.6]} 18... a5 {[%clk 0:02:03.5]} 19. bxa5 {[%clk 0:01:52.2]} 19... Qxa5
{[%clk 0:02:03.3]} 20. Rfc1 {[%clk 0:01:52.8]} 20... b5 {[%clk 0:01:59.5]} 21.
e3 {[%clk 0:01:42.2]} 21... b4 {[%clk 0:01:45]} 22. Nd1 {[%clk 0:01:29.5]} 22...
Qxa4 {[%clk 0:01:43.7]} 23. Qxa4 {[%clk 0:01:28.8]} 23... Rxa4 {[%clk
0:01:44.6]} 24. Nb2 {[%clk 0:01:29.1]} 24... Nxb2 {[%clk 0:01:39.9]} 25. Rxb2
{[%clk 0:01:30]} 25... Bd7 {[%clk 0:01:36.5]} 26. Ne1 {[%clk 0:01:22.3]} 26...
Bf8 {[%clk 0:01:29.6]} 27. Nd3 {[%clk 0:01:21.4]} 27... Rb8 {[%clk 0:01:28.5]}
28. Bf3 {[%clk 0:01:15.1]} 28... b3 {[%clk 0:01:23]} 29. Rc3 {[%clk 0:01:07.9]}
29... Bh3 {[%clk 0:01:11.5]} 30. Bd1 {[%clk 0:00:50.7]} 30... Ra1 {[%clk
0:01:08.6]} 31. Rc1 {[%clk 0:00:51.3]} 31... Ra3 {[%clk 0:00:52.2]} 32. Ne5
{[%clk 0:00:25.7]} 32... Ra1 {[%clk 0:00:42.4]} 33. Rxa1 {[%clk 0:00:24.7]}
33... c5 {[%clk 0:00:37.4]} 34. dxc5 {[%clk 0:00:21.7]} 34... Bg7 {[%clk
0:00:36.4]} 35. f4 {[%clk 0:00:20]} 35... g5 {[%clk 0:00:30.6]} 36. Rxb3 {[%clk
0:00:20.4]} 36... Rc8 {[%clk 0:00:30.1]} 37. Rc1 {[%clk 0:00:20.6]} 37... gxf4
{[%clk 0:00:29.5]} 38. gxf4 {[%clk 0:00:21.5]} 38... Bf8 {[%clk 0:00:27.8]} 39.
c6 {[%clk 0:00:21.9]} 39... Bd6 {[%clk 0:00:25.6]} 40. Nd7 {[%clk 0:00:22.2]}
40... Bxd7 {[%clk 0:00:23.9]} 41. cxd7 {[%clk 0:00:22.8]} 41... Rxc1 {[%clk
0:00:24.3]} 42. d8=Q+ {[%clk 0:00:23.2]} 42... Bf8 {[%clk 0:00:24.3]} 43. Qxd5
{[%clk 0:00:23]} 1-0